Cogmind - Beta 12 X1 @@@ ROGUE MODE // 2022.08.08 @ 16:46:59 Player: btmk16 Result: Destroyed by Y-72 Warden with Quantum Rifle Performance ------------- Evolutions (9) 4500 Regions Visited (30) 6000 Robots Destroyed (435) 2175 Value Destroyed (23399) 23399 Prototype IDs (43) 860 Alien Tech Used (0) 0 Bonus (15534) 15534 TOTAL SCORE: 52468 Bonus ------- Triggered High Security 500 High Alert Combat Kills 6175 Follower Combat Kills 3354 Entered Garrisons 2200 Used RIF Installer 4500 Aligned with FarCom 300 Friendly Fire -1495 Cogmind --------- Core Integrity 0/1600 Matter 175/300 Energy 61/100 System Corruption 7% Temperature Cool (9) Movement Core (50) Location -1/Garrison Parts ------- > --- POWER (2) -------- (None) > --- PROPULSION (6) --- (None) > --- UTILITY (14) ----- Advanced Target Analyzer > --- WEAPON (3) ------- (None) > --- INVENTORY (5) ---- Particle Reactor Stasis Canceller Quantum Rifle Enhanced Quantum Rifle Peak State ------------ > --- POWER ------------ Deuterium Engine Particle Reactor > --- PROPULSION ------- Improved Heavy Treads Improved Heavy Treads Improved Heavy Treads > --- UTILITY ---------- Advanced Heat Sink Advanced Heat Sink Advanced Heat Sink Advanced Heat Sink Advanced Heat Sink Advanced Heat Sink Medium Storage Unit Compact Battery Advanced Target Analyzer Advanced Target Analyzer Relay Coupler [Hunter] Relay Coupler [Behemoth] > --- WEAPON ----------- Phase Gun Enhanced Nova Cannon Compact Linear Accelerator > --- INVENTORY -------- Improved Heavy Treads Field Propulsion Array Advanced Heat Sink Gravity Neutralizer Gravity Neutralizer Relay Coupler [NC] Relay Coupler [Sentry] Advanced Remote Datajack [Rating: 143] Favorites ----------- Power Reinforced Fission Core Engine Reinforced Ion Engine Power Core Reinforced Fission Core Reactor Particle Reactor Propulsion Improved Heavy Treads Treads Improved Heavy Treads Leg Advanced VSS Leg Wheel Wheel Hover Unit Improved Antigrav System Flight Unit Xenon Bombardment Thruster Utility Advanced Heat Sink Device Advanced Heat Sink Storage Huge Storage Unit Processor Advanced Target Analyzer Hackware Relay Coupler [Grunt] Protection Improved Medium Armor Plating Weapon Enhanced Autogun Energy Gun Improved Medium Laser Energy Cannon Firepult Ballistic Gun Enhanced Autogun Ballistic Cannon Enhanced Gauss Cannon Launcher Improved Grenade Launcher Special Weapon Improved Remote Datajack Impact Weapon Heavy Mace Slashing Weapon Great Axe Special Melee Weapon Advanced Datajack Build | -11 -10 -10 -9 -9 -9 -8 -8 -8 -8 -8 -7 -7 -7 -7 -6 -6 -6 -6 -5 -5 -5 -5 -4 -4 -3 -3 -2 -2 -1 -1 ------- Run | Scr Mat Min Mat Min Exi Min Mat Gar Mat Gar Fac Gar Fac Low Fac Gar Fac Gar Fac Gar Fac Gar Fac Gar Res Gar Res Gar Acc Gar Slots Evolved 18 | . . . 2 . . . 2 . . . 2 . . . 2 . . . 2 . . . 2 . 2 . 2 . 2 . Power 1 | . . . . . . . . . . . . . . . . . . . . . . . . . 1 . . . . . Propulsion 4 | . . . . . . . 1 . . . 1 . . . . . . . . . . . . . 1 . 1 . . . Utility 12 | . . . 1 . . . 1 . . . 1 . . . 2 . . . 2 . . . 2 . . . 1 . 2 . Weapon 1 | . . . 1 . . . . . . . . . . . . . . . . . . . . . . . . . . . Parts Attached 517 | 10 9 12 30 3 . 4 3 20 23 37 10 35 7 3 15 15 4 16 5 12 8 30 1 59 . 24 55 38 27 2 Power 35 | 2 . . 3 . . . . 1 1 1 1 2 1 . 2 2 . 2 1 1 . 2 . 2 . 1 3 4 3 . Engine 17 | 2 . . 3 . . . . 1 . 1 1 1 1 . 2 . . 1 . . . 1 . . . . . 3 . . Core 8 | . . . . . . . . . 1 . . 1 . . . . . . . 1 . 1 . 2 . 1 1 . . . Reactor 10 | . . . . . . . . . . . . . . . . 2 . 1 1 . . . . . . . 2 1 3 . Propulsion 116 | 4 2 2 13 . . 2 1 2 3 7 1 4 2 . 4 5 . 1 1 . . 6 . 15 . 3 17 12 8 1 Treads 53 | 2 . 1 4 . . 1 . 2 2 7 1 4 2 . 1 2 . 1 1 . . 6 . 9 . . 1 5 1 . Leg 9 | . . . . . . . . . . . . . . . . . . . . . . . . 6 . 3 . . . . Wheel 24 | 2 2 1 9 . . 1 1 . 1 . . . . . 3 3 . . . . . . . . . . 1 . . . Hover 7 | . . . . . . . . . . . . . . . . . . . . . . . . . . . 4 1 2 . Flight 23 | . . . . . . . . . . . . . . . . . . . . . . . . . . . 11 6 5 1 Utility 178 | 2 1 2 3 2 . 1 2 6 6 9 3 9 2 2 7 6 4 7 3 4 3 11 1 26 . 12 21 13 9 1 Device 82 | 1 . 1 3 1 . 1 2 1 2 6 . 2 1 . 6 3 3 2 . 1 1 5 . 10 . 4 12 8 5 1 Storage 16 | 1 1 . . . . . . . . . 1 . . . . . 1 1 . . . . . . . 2 3 4 2 . Processor 9 | . . 1 . . . . . . . . . . . 1 . 2 . . . . . . . 1 . . 4 . . . Hackware 34 | . . . . . . . . 2 1 2 1 4 . 1 . 1 . 3 1 1 2 2 . 5 . 4 1 1 2 . Protection 37 | . . . . 1 . . . 3 3 1 1 3 1 . 1 . . 1 2 2 . 4 1 10 . 2 1 . . . Artifact . | . . . . . . . . . . . . . . . . . . . . . . . . . . . . . . . Weapon 188 | 2 6 8 11 1 . 1 . 11 13 20 5 20 2 1 2 2 . 6 . 7 5 11 . 16 . 8 14 9 7 . Energy Gun 39 | 1 . . 6 . . 1 . 3 4 2 . 1 . . 1 . . . . . . . . 8 . 3 2 2 5 . Energy Cannon 14 | . . . . . . . . . . 1 . 3 . . . 1 . . . . . 2 . 1 . . 5 1 . . Ballistic Gun 63 | 1 4 5 2 1 . . . 2 6 9 2 6 . . . . . 3 . 7 2 7 . 2 . . 1 3 . . Ballistic Cannon 16 | . . . . . . . . . . . . 2 . . 1 1 . 1 . . . . . 1 . 2 5 3 . . Launcher 20 | . 2 3 3 . . . . 3 1 3 . 4 . . . . . . . . 1 . . . . . . . . . Special Weapon 26 | . . . . . . . . 3 2 5 1 3 1 . . . . . . . 2 2 . 2 . 2 1 . 2 . Impact Weapon 7 | . . . . . . . . . . . 2 1 1 . . . . . . . . . . 2 . 1 . . . . Slashing Weapon 2 | . . . . . . . . . . . . . . 1 . . . 1 . . . . . . . . . . . . Piercing Weapon . | . . . . . . . . . . . . . . . . . . . . . . . . . . . . . . . Special Melee Weapon 1 | . . . . . . . . . . . . . . . . . . 1 . . . . . . . . . . . . Unidentified Prototypes 13 | . . 1 . . . . . . 2 . 2 . 1 . . 2 . . . . 1 . . . . 1 1 1 1 . Corrupted Parts 7 | . . . . . . . . . . 1 . 1 . . . . . . . . . 1 . 2 . 2 . . . . System Corruption 46 | . . . . . . . . . . 9 . 1 . . . . . . . . . 1 . 11 . 24 . . . . Parts Lost 153 | . . 1 6 . . 3 . 3 6 5 2 3 4 . . 1 1 2 . 1 . 12 . 30 . 9 14 33 15 2 Power 13 | . . . 1 . . . . . 1 1 1 1 . . . . . . . 1 . 1 . 1 . . 1 3 1 . Propulsion 55 | . . 1 4 . . 2 . 1 1 1 . 1 2 . . . . 1 . . . 2 . 10 . 4 6 12 6 1 Utility 62 | . . . . . . 1 . 1 3 3 1 1 1 . . 1 1 1 . . . 5 . 10 . 5 6 14 7 1 Weapon 23 | . . . 1 . . . . 1 1 . . . 1 . . . . . . . . 4 . 9 . . 1 4 1 . Highest Loss Streak 19 | . . 1 1 . . 3 . 1 2 2 1 1 2 . . 1 1 1 . 1 . 3 . 12 . 4 4 19 8 2 To Critical Strikes 3 | . . . . . . . . . . . . 1 . . . . . . . . . . . 1 . . . 1 . . Average Slot Usage (%) 85 | . 100 100 98 100 100 98 97 99 97 88 84 84 57 21 76 84 78 82 84 77 75 83 82 87 90 92 61 72 32 8 Engine 4 | . 14 14 10 11 11 11 9 9 6 3 7 4 3 . 5 2 . . . . . . . . . . . 4 . . Core 2 | . . . . . . . . . 2 5 . 2 1 . . . . . . 3 5 4 5 4 4 7 2 . . . Reactor 1 | . . . . . . . . . . . . . . . . 3 6 5 5 1 . . . . . . 4 1 . . Treads 10 | . 1 . 1 . . 7 9 11 15 18 15 16 12 . 6 10 20 13 11 11 11 16 15 11 . . . 7 . . Wheel 5 | . 26 28 20 22 22 13 16 15 11 . . . . . 15 13 . . . . . . . . . . . . . . Device 12 | . 14 2 10 11 11 17 25 18 14 15 12 9 10 . 19 15 18 16 11 6 1 10 15 12 9 12 15 18 5 . Storage 7 | . 14 14 11 11 11 11 9 9 9 9 7 7 5 . . . . 6 5 5 5 5 5 5 4 5 5 7 5 . Processor 3 | . . 11 11 . . . . . . . . . . 6 6 12 6 6 5 . . . . 2 4 1 7 10 4 4 Hackware 7 | . . . . . . . . 2 6 3 2 6 5 6 6 2 6 12 15 17 20 22 21 23 23 20 1 5 6 4 Protection 6 | . . . . 10 11 3 . 5 4 7 15 12 5 . 2 6 4 1 8 10 11 8 9 7 9 6 1 . . . Energy Gun 6 | . 14 14 26 22 22 22 18 12 8 2 6 5 . . 4 3 . . . . . . . 5 . 1 3 1 1 . Energy Cannon 1 | . . . . . . . . . . . . 3 5 . . 4 6 3 . . . 4 5 . . . 2 3 . . Ballistic Gun 8 | . 13 13 5 8 11 11 9 11 16 19 14 8 . . . . . 6 11 14 12 4 5 1 . . . 2 . . Ballistic Cannon 1 | . . . . . . . . . . . . 1 5 . 2 4 6 3 5 . . . . . 4 6 2 4 . . Naked Turns 55 | . . . . . . . . . . . . . 18 5 . . . . . . . . . . . 20 12 . . . Heaviest Build 139 | 13 90 88 103 106 103 103 104 108 113 124 109 134 139 3 47 70 72 72 73 94 83 86 99 99 77 116 72 69 38 . Greatest Support 237 | 40 40 26 40 20 20 20 20 20 20 95 150 150 145 3 48 138 138 150 150 145 145 145 129 150 86 123 41 237 75 3 Greatest Overweight (x) 15 | 4 4 4 9 5 5 10 10 10 11 10 . 1 . . . 2 . . . . . 1 . 2 . 1 15 9 2 . Average Overweight (x) 1 | 1 2 3 4 5 5 7 5 6 8 1 . . . . . . . . . . . . . . . . . . . . Largest Inventory Capacity 25 | 8 25 25 25 25 25 25 25 25 25 25 25 25 25 5 5 5 15 15 15 15 15 15 15 15 15 15 10 10 5 5 Average Capacity 18 | 7 23 25 25 25 25 25 25 25 25 25 25 25 19 5 5 5 6 15 15 15 15 15 15 15 15 14 7 9 5 5 Most Carried 25 | 8 22 25 25 25 25 25 25 25 25 25 25 25 25 5 5 5 5 15 15 15 15 15 15 15 15 15 10 10 5 4 Average Carried 17 | 5 13 22 24 24 24 23 23 24 24 24 24 24 19 5 4 4 4 10 15 14 14 14 13 13 15 14 5 7 3 3 Final Capacity 25 | 8 25 25 25 25 25 25 25 25 25 25 25 25 5 5 5 5 15 15 15 15 15 15 15 15 15 5 10 5 5 5 Final Carried 25 | 8 22 25 25 25 25 23 25 25 25 25 25 25 5 5 5 4 5 15 15 15 14 15 13 15 15 5 10 5 4 4 Class Distribution -------------------- 15% | Scavenger-Mutant 14% | Botlord-Mutant 11% | Bothacker-Tank 11% | Mutant 8% | Bothacker-Mutant 6% | Scavenger-Skirmisher 5% | Scavenger-Gunner 5% | Scavenger-Tank 5% | Botlord-Tank 5% | Bothacker-Skirmisher 3% | Botlord-Skirmisher Dominant Class ---------------- Mutant | -10/Materials Mutant | -10/Mines Scavenger-Gunner | -9/Materials Scavenger-Tank | -9/Mines Scavenger-Tank | -9/Exiles Scavenger-Skirmisher | -8/Mines Scavenger-Skirmisher | -8/Materials Scavenger-Skirmisher | -8/Garrison Bothacker-Skirmisher | -8/Materials Bothacker-Mutant | -8/Garrison Bothacker-Tank | -7/Factory Bothacker-Tank | -7/Garrison Bothacker-Tank | -7/Factory Mutant | -7/Lower Caves Scavenger-Mutant | -6/Factory Scavenger-Mutant | -6/Garrison Mutant | -6/Factory Scavenger-Mutant | -6/Garrison Botlord-Tank | -5/Factory Botlord-Tank | -5/Garrison Botlord-Mutant | -5/Factory Botlord-Mutant | -5/Garrison Botlord-Mutant | -4/Factory Botlord-Mutant | -4/Garrison Botlord-Mutant | -3/Research Botlord-Mutant | -3/Garrison Scavenger-Scout | -2/Research Scavenger-Gunner | -2/Garrison Mutant | -1/Access Mutant | -1/Garrison Resources | -11 -10 -10 -9 -9 -9 -8 -8 -8 -8 -8 -7 -7 -7 -7 -6 -6 -6 -6 -5 -5 -5 -5 -4 -4 -3 -3 -2 -2 -1 -1 ----------- Run | Scr Mat Min Mat Min Exi Min Mat Gar Mat Gar Fac Gar Fac Low Fac Gar Fac Gar Fac Gar Fac Gar Fac Gar Res Gar Res Gar Acc Gar Matter Collected 13297 | 307 212 101 572 112 . 36 43 631 431 1565 234 1085 333 76 150 295 142 431 75 701 198 1416 26 1054 . 809 1045 1120 97 . Remotely 499 | 138 172 24 . . . . . . . . . . . . 90 75 . . . . . . . . . . . . . . Salvage Created 22895 | 117 423 134 2422 313 . 115 52 1740 1011 1566 431 827 596 81 157 1385 289 2559 176 969 97 2444 122 1809 . 588 911 1561 . . Parts 962 | 9 29 11 162 15 . 1 4 68 42 60 23 55 25 6 5 50 6 89 12 33 9 69 9 52 . 16 53 49 . . Haulers Intercepted 12 | . 1 . 6 . . . . . 3 . 1 . 1 . . . . . . . . . . . . . . . . . Recyclers Shooed 9 | . 1 . 2 . . . . . 3 . . . . . . . . . 1 . . . . . . . 2 . . . Parts Field Recycled . | . . . . . . . . . . . . . . . . . . . . . . . . . . . . . . . Retrieved Matter . | . . . . . . . . . . . . . . . . . . . . . . . . . . . . . . . Parts Self-Destructed . | . . . . . . . . . . . . . . . . . . . . . . . . . . . . . . . Prevented . | . . . . . . . . . . . . . . . . . . . . . . . . . . . . . . . Kills | -11 -10 -10 -9 -9 -9 -8 -8 -8 -8 -8 -7 -7 -7 -7 -6 -6 -6 -6 -5 -5 -5 -5 -4 -4 -3 -3 -2 -2 -1 -1 ------- Run | Scr Mat Min Mat Min Exi Min Mat Gar Mat Gar Fac Gar Fac Low Fac Gar Fac Gar Fac Gar Fac Gar Fac Gar Res Gar Res Gar Acc Gar Combat Hostiles Destroyed 363 | . 9 5 42 9 . 2 1 27 11 24 7 24 11 . . 25 5 36 3 17 2 31 3 25 . 13 15 16 . . Melee 4 | . . . . . . . . . . . . . . . . 1 . 1 . . . . . 2 . . . . . . Guns 179 | . 3 . 33 6 . 2 1 19 11 19 7 16 . . . 2 . 9 2 17 2 3 . 16 . 1 5 5 . . Cannons 69 | . . . . . . . . . . . . 1 9 . . 10 1 11 1 . . 4 . 1 . 11 9 11 . . AOE 81 | . 6 5 9 3 . . . 8 . 5 . 7 1 . . 8 3 10 . . . 13 2 1 . . . . . . Classes Destroyed 20 | 2 5 . 5 . . . . 1 1 2 1 . . 1 . . . . . . . 1 . . . 1 . . . . Worker 10 | . 1 . 4 . . . . . 1 . . . . . . . 1 . . . . . 2 . . . 1 . . . Builder 11 | . 1 . 6 . . . . . 1 . . . 1 . . . . . . . . . . . . . 2 . . . Tunneler 9 | 2 . 1 3 1 . . . . . . . . 2 . . . . . . . . . . . . . . . . . Hauler 12 | . 1 . 6 . . . . . 3 . 1 . 1 . . . . . . . . . . . . . . . . . Recycler 14 | 1 2 . 2 1 . . . . 3 . 1 . . . 1 . 1 . . . . . . . . . 2 . . . Mechanic 3 | . . . 1 . . . . . . . . 1 1 . . . . . . . . . . . . . . . . . Operator 3 | . . . 2 . . . . . . . . . 1 . . . . . . . . . . . . . . . . . Watcher 5 | . . . 2 . . . . . 2 . . . . . . 1 . . . . . . . . . . . . . . Swarmer 97 | . 6 1 7 6 . . . 8 . 2 1 11 1 . . 11 2 3 . 3 . 17 4 3 . 2 4 5 . . Cutter 15 | . . . . . . . . . . 2 . 1 . . . . . 8 . . . . . 2 . . 2 . . . Grunt 135 | . 3 4 23 3 . 2 . 11 4 12 2 4 6 . . 7 3 17 . 7 . 7 . 3 . 8 . 9 . . Brawler 20 | . . . 3 . . . . . 2 1 . . 2 . . . . 3 . 1 . . . 6 . 1 . 1 . . Duelist 5 | . . . . . . . . . . 1 . . 1 . . . . 1 . 2 . . . . . . . . . . Sentry 46 | . . . 9 . . . 1 7 3 6 . 4 1 . . . . 2 1 4 . 5 . 2 . . . 1 . . Specialist 8 | . . . . . . . . . 2 . . . . . . 4 . . . . . . . 2 . . . . . . Hunter 15 | . . . . . . . . . . . 1 4 . . . 2 . 2 . . . 1 . 5 . . . . . . Programmer 22 | . . . . . . . . 1 . . 3 . . . . 1 . . 2 . 2 1 . 2 . 1 9 . . . Behemoth 4 | . . . . . . . . . . . . . . . . . . . . . . 4 . . . . . . . . Executioner 1 | . . . . . . . . . . . . . . . . . . . . . . . . . . 1 . . . . Samaritan 2 | . . . . . . . . . . . . . . 2 . . . . . . . . . . . . . . . . Best Kill Streak 10 | 3 5 2 7 3 . 2 1 9 7 3 2 4 5 . 1 8 3 7 2 10 1 5 5 5 . 5 4 5 . . Combat Bots Only 10 | . 3 2 5 3 . 2 1 9 5 3 2 4 4 . . 8 3 7 2 10 1 5 3 5 . 5 4 5 . . Max Kills in Single Turn 4 | 1 2 1 4 2 . 1 1 3 2 2 1 2 3 1 1 4 2 2 1 2 1 4 3 2 . 1 1 2 . . Gunslinging 1 | . . . 1 1 . . . . . 1 . 1 . . . . . . . 1 . . . . . . . . . . Exploded 3 | . 2 1 3 1 . . . 3 . 2 . 2 1 . . 2 1 2 . . . 3 1 1 . . . . . . Melee 1 | . . . . . . . . . . . . . . . . 1 . 1 . . . . . 1 . . . . . . Uniques/NPCs Destroyed . | . . . . . . . . . . . . . . . . . . . . . . . . . . . . . . . Combat | -11 -10 -10 -9 -9 -9 -8 -8 -8 -8 -8 -7 -7 -7 -7 -6 -6 -6 -6 -5 -5 -5 -5 -4 -4 -3 -3 -2 -2 -1 -1 -------- Run | Scr Mat Min Mat Min Exi Min Mat Gar Mat Gar Fac Gar Fac Low Fac Gar Fac Gar Fac Gar Fac Gar Fac Gar Res Gar Res Gar Acc Gar Damage Taken 33729 | . 177 128 912 123 . 272 42 1013 491 1109 187 1344 1631 . 53 757 128 1270 282 1689 215 2224 103 7098 . 2859 1979 5066 2070 507 Core 6069 | . 59 33 211 19 . 32 . 176 62 68 . 109 520 . . 105 . 143 49 84 43 200 . 704 . 603 455 787 1164 443 Absorbed by Shields 326 | . . . . . . . . . . . . . 16 . . 173 . . . . . . . . . 45 24 50 . 18 Reduced by Siege Mode 693 | . . . . . . . . . . . . . 52 . . . . . . 90 . 39 . 120 . . . 392 . . Regen/Repaired (Parts) 32 | . . . . . . . . . . . 32 . . . . . . . . . . . . . . . . . . . Core Remaining (%) 48 | 100 . 63 . . . 34 . . . 44 . . . 10 . . . 70 . . . 62 . 38 . 53 . 14 . . Volleys Fired 1298 | 7 41 11 106 14 . 7 1 104 50 127 34 82 19 . . 43 16 53 8 43 22 174 5 107 . 60 74 83 7 . Largest 3 | 2 2 2 3 3 . 3 3 3 3 3 3 3 2 . . 2 1 3 3 3 3 3 1 3 . 3 3 3 1 . Hottest 319 | 60 60 70 168 135 . 135 148 148 142 119 119 195 180 . . 319 250 250 123 99 99 283 250 250 . 195 255 284 94 . Shots Fired 2615 | 14 77 18 298 36 . 21 3 257 137 269 97 171 37 . . 57 16 88 22 124 45 219 5 170 . 112 145 170 7 . Gun 1981 | 14 72 12 290 33 . 21 3 245 132 243 95 131 . . . 24 . 46 14 124 39 171 3 143 . 21 46 54 5 . Cannon 487 | . . . . . . . . . . . . 24 36 . . 33 16 42 8 . . 31 2 8 . 74 97 116 . . Launcher 54 | . 5 6 8 3 . . . 8 1 9 . 14 . . . . . . . . . . . . . . . . . . Special 93 | . . . . . . . . 4 4 17 2 2 1 . . . . . . . 6 17 . 19 . 17 2 . 2 . Kinetic 1420 | 7 36 5 46 11 . 7 1 105 94 192 68 93 18 . . 21 11 59 22 124 39 171 3 63 . 74 64 86 . . Thermal 1032 | 7 36 7 244 22 . 14 2 140 22 51 27 62 18 . . 36 5 29 . . . 31 2 88 . 21 79 84 5 . Explosive 54 | . 5 6 8 3 . . . 8 1 9 . 14 . . . . . . . . . . . . . . . . . . Electromagnetic 16 | . . . . . . . . . 16 . . . . . . . . . . . . . . . . . . . . . Robot Hit Streak 41 | 5 10 7 11 11 . 5 6 34 16 24 11 11 8 . . 10 6 10 5 41 9 37 1 13 . 11 12 22 13 . Robot Miss Streak 9 | 3 3 2 3 3 . 2 . 5 5 3 3 7 2 . . 3 5 6 1 3 2 4 3 4 . 4 9 4 2 . Penetration Max 1 | . . . . . . . . . . . . . 1 . . . . 1 1 1 1 1 . 1 . . 1 . . . Secondary Targets 34 | . 1 . 4 2 . 1 . 4 3 7 . 4 . . . . . . . 8 . . . . . . . . . . Max Gunslinging Chain 1 | . 1 . 1 1 . 1 . 1 1 1 . 1 . . . . . . . 1 . . . . . . . . . . Shots Hit Robots 1711 | 7 49 12 172 26 . 14 3 167 85 174 60 79 23 3 3 59 11 80 12 86 24 144 1 150 . 62 73 128 4 . Core Hits 943 | 5 27 14 90 11 . 5 2 84 36 81 21 56 21 1 1 58 15 97 6 37 7 107 4 57 . 26 24 49 . 1 Critical Kills 12 | . . . . . . . . 1 1 . . 2 1 . . . . 1 . 1 . . . . . . 1 4 . . Critical Parts Destroyed 13 | . . . . . . . . . . 1 . 1 . . . . . 1 . 1 1 1 . 5 . 1 . 1 . . Critical Strikes 91 | . . . 13 1 . . . 11 2 3 1 4 2 . . 3 1 3 1 4 1 1 . 15 . 5 8 12 . . Burn 38 | . . . 13 1 . . . 10 1 2 1 . . . . . . . . . . . . 9 . . . 1 . . Meltdown 3 | . . . . . . . . . . . . . 1 . . . . . . . . . . . . . 1 1 . . Destroy 18 | . . . . . . . . 1 1 1 . 3 . . . . . 2 . 4 1 1 . . . . . 4 . . Blast 21 | . . . . . . . . . . . . . 1 . . 1 1 . 1 . . . . . . 4 7 6 . . Smash 8 | . . . . . . . . . . . . 1 . . . . . . . . . . . 6 . 1 . . . . Sever 3 | . . . . . . . . . . . . . . . . 2 . 1 . . . . . . . . . . . . Melee Attacks 124 | . . . . . . . . . . . 3 2 4 3 5 25 . 34 . . . . . 42 . 6 . . . . Impact 57 | . . . . . . . . . . . 3 2 4 . . . . . . . . . . 42 . 6 . . . . Slashing 58 | . . . . . . . . . . . . . . 3 5 25 . 25 . . . . . . . . . . . . Piercing . | . . . . . . . . . . . . . . . . . . . . . . . . . . . . . . . Sneak Attacks 8 | . . . . . . . . . . . . . . 3 2 . . 1 . . . . . 1 . 1 . . . . Combat Hostiles 2 | . . . . . . . . . . . . . . . . . . . . . . . . 1 . 1 . . . . Follow-up Attacks . | . . . . . . . . . . . . . . . . . . . . . . . . . . . . . . . Damage Inflicted 50544 | 70 818 445 3650 589 . 261 52 3249 1529 3525 1154 2224 1737 238 199 2542 533 4634 389 2169 591 5511 167 4334 . 1862 3161 4847 57 7 Guns 25341 | 70 471 71 2810 387 . 261 52 2830 1489 2871 1154 1256 . . . 365 . 813 273 2169 591 2854 . 2230 . 176 848 1243 57 . Cannons 10801 | . . . . . . . . . . . . 107 1327 . . 493 196 527 116 . . 544 14 131 . 1429 2313 3604 . . Explosions 9166 | . 347 374 840 202 . . . 419 40 654 . 707 410 . . 815 337 1448 . . . 2113 153 254 . 53 . . . . Melee 5214 | . . . . . . . . . . . . 154 . 238 199 869 . 1846 . . . . . 1704 . 204 . . . . Ramming 22 | . . . . . . . . . . . . . . . . . . . . . . . . 15 . . . . . 7 Kinetic 21016 | 25 219 25 343 124 . 93 17 1077 997 2198 774 857 758 . . 278 184 916 389 2169 591 2854 . 1125 . 1429 1494 2080 . . Thermal 20519 | 45 252 102 2545 263 . 168 35 1753 288 673 380 506 912 . . 1395 349 1872 . . . 2657 167 1490 . 176 1667 2767 57 . Explosive 3462 | . 347 318 762 202 . . . 419 . 654 . 707 . . . . . . . . . . . . . 53 . . . . Electromagnetic 311 | . . . . . . . . . 244 . . . 67 . . . . . . . . . . . . . . . . . Impact 2062 | . . . . . . . . . . . . 154 . . . . . . . . . . . 1704 . 204 . . . . Slashing 3152 | . . . . . . . . . . . . . . 238 199 869 . 1846 . . . . . . . . . . . . Piercing . | . . . . . . . . . . . . . . . . . . . . . . . . . . . . . . . Highest Corruption 30 | . . . . . . . . 1 3 12 . 2 13 13 . 1 1 . 2 7 9 13 . 18 . 30 16 16 7 7 Average Corruption 7 | . . . . . . . . 1 2 4 . 1 3 13 . 1 1 . 1 5 8 12 . 15 . 27 7 16 4 7 Corruption Purged 1 | . . . . . . . . . . . . . . . . . 1 . . . . . . . . . . . . . Corruption Blocked . | . . . . . . . . . . . . . . . . . . . . . . . . . . . . . . . Effects 467 | . . . . . . . . 5 9 66 . 28 16 2 . 4 . . . 21 27 95 . 66 . 48 31 46 2 1 Message Errors 103 | . . . . . . . . 1 2 10 . 10 6 1 . 1 . . . 5 8 17 . 17 . 10 6 8 . 1 Matter Fused 119 | . . . . . . . . 2 2 15 . 5 5 1 . 1 . . . 3 5 30 . 18 . 8 10 13 1 . Heat Flow Errors 50 | . . . . . . . . . . 10 . 1 2 . . . . . . 2 3 9 . 8 . 10 2 3 . . Energy Discharges 48 | . . . . . . . . 1 . 11 . 4 1 . . . . . . . 5 10 . 5 . 7 1 3 . . Parts Rejected 6 | . . . . . . . . . . . . . . . . . . . . 1 . . . 1 . 1 . 2 1 . Data Loss (minor) 44 | . . . . . . . . . 1 8 . 3 . . . . . . . 4 3 8 . 5 . 4 4 4 . . Data Loss (major) 25 | . . . . . . . . . 3 2 . 3 1 . . 2 . . . . 2 6 . 1 . . 2 3 . . Misfires 19 | . . . . . . . . . . 5 . 1 . . . . . . . 1 1 6 . 4 . . . 1 . . Alerts 11 | . . . . . . . . . . 2 . 1 1 . . . . . . . . 3 . 1 . 2 . 1 . . Misdirections 6 | . . . . . . . . . . . . . . . . . . . . . . . . 1 . 1 2 2 . . Weapon Failures 36 | . . . . . . . . 1 1 3 . . . . . . . . . 5 . 6 . 5 . 5 4 6 . . Overload Shots . | . . . . . . . . . . . . . . . . . . . . . . . . . . . . . . . Overflow Damage 1336 | . . . 78 16 . . . . . . . 94 103 50 76 54 51 84 . . . 16 . 454 . 89 159 12 . . Projectiles 256 | . . . . . . . . . . . . . 38 . . . 1 . . . . . . 21 . 25 159 12 . . Explosions 248 | . . . 78 16 . . . . . . . 8 65 . . . 50 15 . . . 16 . . . . . . . . Melee 832 | . . . . . . . . . . . . 86 . 50 76 54 . 69 . . . . . 433 . 64 . . . . Knockbacks 56 | . . . . . . . . . . . . 1 2 . . 1 2 . . . . . . 9 . 10 19 12 . . Impact 11 | . . . . . . . . . . . . 1 . . . . . . . . . . . 8 . 2 . . . . Kinetic 42 | . . . . . . . . . . . . . 2 . . 1 2 . . . . . . . . 8 18 11 . . Secondary 3 | . . . . . . . . . . . . . . . . . . . . . . . . 1 . . 1 1 . . Self-Inflicted Damage 992 | . 6 . 32 . . . . 39 43 . . 19 29 . . 54 94 303 . . . 220 . 41 . 109 . . . 3 Shots 64 | . 1 . 1 . . . . 2 1 . . 1 1 . . 6 1 26 . . . 20 . 3 . 1 . . . . Rammed 5 | . 1 . . . . . . . . . . . . . . . . . . . . . . 1 . . . . . 3 Targets Rammed 5 | . 1 . . . . . . . . . . . . . . . . . . . . . . 1 . . . . . 3 Kicked . | . . . . . . . . . . . . . . . . . . . . . . . . . . . . . . . Crushed . | . . . . . . . . . . . . . . . . . . . . . . . . . . . . . . . Highest Temperature 613 | 20 103 41 324 145 . 129 9 369 84 211 46 257 256 . . 613 504 429 . 256 271 540 184 435 . 202 378 308 8 . Average Temperature 81 | 15 31 14 82 46 . 48 6 101 29 37 8 61 102 . . 193 205 147 . 50 37 130 102 111 . 96 80 77 8 . Received Heat Transfer 5266 | . 63 60 345 . . 159 18 459 117 549 36 198 264 . 27 87 . 279 9 432 27 378 . 798 . 208 81 618 45 9 Effects 24 | . . . . . . . . 2 . . . . . . . 5 5 1 . . . 5 . 1 . . 1 4 . . Shutdowns 8 | . . . . . . . . 1 . . . . . . . 2 . 1 . . . 2 . 1 . . 1 . . . Energy Bleed 2 | . . . . . . . . . . . . . . . . 1 1 . . . . . . . . . . . . . Interference 11 | . . . . . . . . 1 . . . . . . . 1 3 . . . . 2 . . . . . 4 . . Matter Decay 1 | . . . . . . . . . . . . . . . . 1 . . . . . . . . . . . . . . Short Circuit 1 | . . . . . . . . . . . . . . . . . 1 . . . . . . . . . . . . . Damage (major) 1 | . . . . . . . . . . . . . . . . . . . . . . 1 . . . . . . . . Siege Activations 9 | . . . . . . . . . . . 1 . 2 . . . . . . 1 . 1 . 1 . . . 3 . . Total Turns 238 | . . . . . . . . . . . 6 . 16 . . . . . . 52 . 14 . 36 . . . 114 . . Longest Duration 52 | . . . . . . . . . . . 6 . 10 . . . . . . 52 . 14 . 36 . . . 41 . . Robots Corrupted . | . . . . . . . . . . . . . . . . . . . . . . . . . . . . . . . Combat Hostiles . | . . . . . . . . . . . . . . . . . . . . . . . . . . . . . . . Parts Fried 10 | . . . . . . . . . . . . 1 . . . . . . . . . . . 6 . 3 . . . . Impact Corruptions 21 | . . . . . . . . . . . . 4 1 . . . . . . . . . . 13 . 2 1 . . . Robots Melted 33 | . . . . . . . . . . . . . 1 . . 4 1 6 . . . 13 2 4 . . 1 1 . . Combat Hostiles 28 | . . . . . . . . . . . . . 1 . . 4 1 5 . . . 11 1 4 . . 1 . . . Parts Melted 179 | 1 . . 18 4 . 1 . 9 1 . 2 1 1 . . 36 3 28 . . . 50 3 11 . . 8 2 . . Heat Transferred 58773 | 100 575 150 6391 629 . 370 74 4329 655 1424 740 870 786 . . 6063 1650 9800 . . . 13840 1040 4627 . 370 1480 2736 74 . Parts Sabotaged 2 | . . . . . . . . . . . . . . . . . . . . . . . . . . . . 2 . . Parts Stolen . | . . . . . . . . . . . . . . . . . . . . . . . . . . . . . . . Parts Stripped . | . . . . . . . . . . . . . . . . . . . . . . . . . . . . . . . Power Chain Reactions 1 | . . . . . . . . . 1 . . . . . . . . . . . . . . . . . . . . . Missiles Intercepted . | . . . . . . . . . . . . . . . . . . . . . . . . . . . . . . . Alert | -11 -10 -10 -9 -9 -9 -8 -8 -8 -8 -8 -7 -7 -7 -7 -6 -6 -6 -6 -5 -5 -5 -5 -4 -4 -3 -3 -2 -2 -1 -1 ------- Run | Scr Mat Min Mat Min Exi Min Mat Gar Mat Gar Fac Gar Fac Low Fac Gar Fac Gar Fac Gar Fac Gar Fac Gar Res Gar Res Gar Acc Gar Peak Influence 2868 | 15 366 210 918 472 . 55 76 1245 631 1990 1072 2868 2312 . 1051 1710 1027 2116 1252 1259 793 1229 691 1038 583 677 372 363 169 20 Initial 1505 | . 9 85 20 357 . . 21 52 596 134 1044 643 1505 . 908 735 897 495 1110 765 660 324 644 465 583 437 352 191 126 20 Average 795 | 5 128 161 441 391 . 29 44 627 195 886 958 1843 1800 . 970 1278 907 1393 1144 1025 625 671 658 716 583 576 222 223 96 18 Maximum Alert Level 5 | . 1 1 3 2 . . . 4 2 5 3 5 5 . 3 5 3 5 4 4 3 4 2 3 2 2 1 1 . . Low Security (%) 17 | 100 61 41 27 . . 100 100 14 72 4 . . . . . . . . . . . . . . . . 59 57 100 100 Level 1 13 | . 38 58 17 47 . . . 8 10 17 . . . . . . . . . . . 28 . . . . 40 42 . . Level 2 20 | . . . 31 52 . . . 37 17 29 . 1 . . . . . 10 . . 78 24 100 50 100 100 . . . . Level 3 25 | . . . 23 . . . . 32 . 16 100 15 . . 100 29 100 24 23 49 21 40 . 49 . . . . . . Level 4 11 | . . . . . . . . 6 . 17 . 21 37 . . 46 . 27 76 50 . 6 . . . . . . . . Level 5 10 | . . . . . . . . . . 14 . 61 1 . . 23 . 38 . . . . . . . . . . . . High Security 1 | . . . . . . . . . . . . . 61 . . . . . . . . . . . . . . . . . Max Security . | . . . . . . . . . . . . . . . . . . . . . . . . . . . . . . . Squads Dispatched 48 | . 1 . 7 . . . 1 . 3 . 4 . 15 . 1 . 4 . 2 . 1 . . . . . 6 . 3 . Investigation 4 | . . . 1 . . . . . . . 1 . 1 . . . 1 . . . . . . . . . . . . . Extermination 10 | . . . . . . . . . . . 2 . . . . . 1 . 1 . 1 . . . . . 4 . 1 . Reinforcement 14 | . 1 . 4 . . . . . 2 . 1 . . . 1 . . . 1 . . . . . . . 2 . 2 . Assault 18 | . . . 2 . . . . . . . . . 14 . . . 2 . . . . . . . . . . . . . Garrison 2 | . . . . . . . 1 . 1 . . . . . . . . . . . . . . . . . . . . . Intercept . | . . . . . . . . . . . . . . . . . . . . . . . . . . . . . . . Searches Triggered . | . . . . . . . . . . . . . . . . . . . . . . . . . . . . . . . Construction Impeded 1 | . . . . . . . . . . . . . . . . . . . . . . . . . . . 1 . . . Haulers Reinforced 2 | . . . . . . . . . . . 1 . . . . . . . 1 . . . . . . . . . . . Active Scanning Responses . | . . . . . . . . . . . . . . . . . . . . . . . . . . . . . . . Cargo Convoy Interrupts . | . . . . . . . . . . . . . . . . . . . . . . . . . . . . . . . Alert ID Control Effect 35 | . . . . . . . . . . . . . . . . . . . . . . 15 4 3 . 2 7 1 3 . Stealth | -11 -10 -10 -9 -9 -9 -8 -8 -8 -8 -8 -7 -7 -7 -7 -6 -6 -6 -6 -5 -5 -5 -5 -4 -4 -3 -3 -2 -2 -1 -1 --------- Run | Scr Mat Min Mat Min Exi Min Mat Gar Mat Gar Fac Gar Fac Low Fac Gar Fac Gar Fac Gar Fac Gar Fac Gar Res Gar Res Gar Acc Gar Distress Signals 11 | . . . 3 . . . . . 3 . . . 1 . . . . . . . . . 1 . . . 2 . 1 . Communications Jammed 9 | . . . . . . . . . . . . . . . . . . . . . . . . . . . . . 9 . Distress Signals 9 | . . . . . . . . . . . . . . . . . . . . . . . . . . . . . 9 . Times Spotted 674 | . 15 7 64 13 . 3 2 29 17 39 14 42 71 . 6 30 4 42 4 25 10 52 6 32 . 35 43 33 24 12 Peak Tracking Total 32 | . 4 3 8 4 . 3 2 4 3 6 3 4 32 . 3 9 3 4 2 9 2 5 5 8 . 7 10 10 8 12 Tactical Retreats 31 | . . . 1 . . . . 3 . 2 . 1 6 . . 1 . . . 1 . . . . . 2 8 2 3 1 Traps | -11 -10 -10 -9 -9 -9 -8 -8 -8 -8 -8 -7 -7 -7 -7 -6 -6 -6 -6 -5 -5 -5 -5 -4 -4 -3 -3 -2 -2 -1 -1 ------- Run | Scr Mat Min Mat Min Exi Min Mat Gar Mat Gar Fac Gar Fac Low Fac Gar Fac Gar Fac Gar Fac Gar Fac Gar Res Gar Res Gar Acc Gar Traps Triggered 45 | . . . 1 . . . . 2 . 7 1 8 4 . . 4 1 2 . . . 3 . . . 6 3 2 . 1 Indirectly . | . . . . . . . . . . . . . . . . . . . . . . . . . . . . . . . Trap Hack Attempts . | . . . . . . . . . . . . . . . . . . . . . . . . . . . . . . . Triggered . | . . . . . . . . . . . . . . . . . . . . . . . . . . . . . . . Disarmed . | . . . . . . . . . . . . . . . . . . . . . . . . . . . . . . . Reprogrammed . | . . . . . . . . . . . . . . . . . . . . . . . . . . . . . . . Reused . | . . . . . . . . . . . . . . . . . . . . . . . . . . . . . . . Traps Extracted . | . . . . . . . . . . . . . . . . . . . . . . . . . . . . . . . Installed . | . . . . . . . . . . . . . . . . . . . . . . . . . . . . . . . Triggered . | . . . . . . . . . . . . . . . . . . . . . . . . . . . . . . . Most Traps Carried 4 | . . . . . . . . . . . . 4 4 . . . . . . . . . . . . . . . . . Machines | -11 -10 -10 -9 -9 -9 -8 -8 -8 -8 -8 -7 -7 -7 -7 -6 -6 -6 -6 -5 -5 -5 -5 -4 -4 -3 -3 -2 -2 -1 -1 ---------- Run | Scr Mat Min Mat Min Exi Min Mat Gar Mat Gar Fac Gar Fac Low Fac Gar Fac Gar Fac Gar Fac Gar Fac Gar Res Gar Res Gar Acc Gar Machines Disabled 81 | . 3 2 3 2 . . . 4 6 3 . 9 15 . . 5 1 6 2 2 . 7 1 4 . 5 . 1 . . Max in Single Turn 12 | . 2 1 2 . . . . 1 1 1 . 2 12 . . 1 1 2 1 1 . 1 1 1 . 2 . 1 . . Garrison Relay 31 | . . . . . . . . 4 . 3 . 4 . . . 2 . 3 . 2 . 4 . 6 . 2 . 1 . . Phase Generator 2 | . . . . . . . . . . . . . . . . . . 1 . . . . . . . 1 . . . . Machines Sabotaged . | . . . . . . . . . . . . . . . . . . . . . . . . . . . . . . . Garrisons Compromised . | . . . . . . . . . . . . . . . . . . . . . . . . . . . . . . . Overloaded Fab Kills . | . . . . . . . . . . . . . . . . . . . . . . . . . . . . . . . Hacking | -11 -10 -10 -9 -9 -9 -8 -8 -8 -8 -8 -7 -7 -7 -7 -6 -6 -6 -6 -5 -5 -5 -5 -4 -4 -3 -3 -2 -2 -1 -1 --------- Run | Scr Mat Min Mat Min Exi Min Mat Gar Mat Gar Fac Gar Fac Low Fac Gar Fac Gar Fac Gar Fac Gar Fac Gar Res Gar Res Gar Acc Gar Machines Accessed 76 | . 6 1 8 1 2 . 1 3 5 3 7 2 3 . 2 1 5 3 2 1 5 1 2 1 1 . 6 2 2 . Terminals 51 | . 4 . 8 1 . . . 3 4 3 5 2 1 . . 1 2 3 1 1 3 1 1 1 . . 4 2 . . Fabricators 3 | . . . . . . . . . . . . . 1 . . . 2 . . . . . . . . . . . . . Repair Stations 4 | . . . . . . . . . . . 1 . 1 . . . . . . . 1 . . . . . 1 . . . Recycling Units 3 | . 2 . . . . . . . . . . . . . 1 . . . . . . . . . . . . . . . Scanalyzers . | . . . . . . . . . . . . . . . . . . . . . . . . . . . . . . . Garrison Access 12 | . . . . . . . 1 . 1 . 1 . . . 1 . 1 . 1 . 1 . 1 . 1 . 1 . 2 . Total Hacks 147 | . 13 1 29 2 2 . 2 6 12 6 15 4 7 . 2 2 7 5 4 1 7 2 3 3 1 . 6 3 2 . Successful 79 | . 9 1 14 2 2 . 1 2 9 3 7 2 2 . 1 1 3 1 3 1 5 1 2 1 1 . 2 1 2 . Failed 68 | . 4 . 15 . . . 1 4 3 3 8 2 5 . 1 1 4 4 1 . 2 1 1 2 . . 4 2 . . Catastrophic 14 | . . . 1 . . . . 1 . 1 . . 2 . 1 . 2 . . . 1 . . 1 . . 4 . . . Database Lockouts . | . . . . . . . . . . . . . . . . . . . . . . . . . . . . . . . Manual 27 | . 3 . 3 . 1 . . . 6 . 6 . 2 . . . 1 . 1 . 2 . . . . . 2 . . . Terminals 118 | . 10 . 29 2 . . . 6 11 6 13 4 4 . . 2 3 5 3 1 5 2 2 3 . . 4 3 . . Fabricators 5 | . . . . . . . . . . . . . 2 . . . 3 . . . . . . . . . . . . . Repair Stations 4 | . . . . . . . . . . . 1 . 1 . . . . . . . 1 . . . . . 1 . . . Recycling Units 4 | . 3 . . . . . . . . . . . . . 1 . . . . . . . . . . . . . . . Scanalyzers . | . . . . . . . . . . . . . . . . . . . . . . . . . . . . . . . Garrison Access 13 | . . . . . . . 2 . 1 . 1 . . . 1 . 1 . 1 . 1 . 1 . 1 . 1 . 2 . Terminal Hacks 52 | . 7 1 14 2 2 . . 2 5 3 3 2 . . . 1 1 1 1 1 2 1 1 1 . . . 1 . . Record 1 | . . . . . 1 . . . . . . . . . . . . . . . . . . . . . . . . . Part Schematic 1 | . . . 1 . . . . . . . . . . . . . . . . . . . . . . . . . . . Robot Analysis 6 | . 2 . 3 . . . . . 1 . . . . . . . . . . . . . . . . . . . . . Prototype ID Bank 4 | . 2 . 2 . . . . . . . . . . . . . . . . . . . . . . . . . . . Open Door 5 | . . 1 . . . . . 1 . 1 . 1 . . . . . . . . . . . 1 . . . . . . Open DSF 1 | . . . . . . . . . . . 1 . . . . . . . . . . . . . . . . . . . Branch Access Points 2 | . . . . . . . . . . . . . . . . . . . 1 . . . 1 . . . . . . . Emergency Access Points 6 | . . . . . . . . 1 . 1 . 1 . . . 1 . 1 . . . 1 . . . . . . . . Terminal Index 1 | . . . . . . . . . . . 1 . . . . . . . . . . . . . . . . . . . Alert Level 5 | . 1 . 2 1 . . . . 1 . . . . . . . . . . . . . . . . . . . . . Unreport Threat 5 | . . . 1 . . . . . 3 . . . . . . . . . . . 1 . . . . . . . . . Locate Traps 1 | . 1 . . . . . . . . . . . . . . . . . . . . . . . . . . . . . Maintenance Status 2 | . . . 1 . . . . . . . 1 . . . . . . . . . . . . . . . . . . . Investigation Status 1 | . . . . 1 . . . . . . . . . . . . . . . . . . . . . . . . . . Hauler Manifests 5 | . 1 . 2 . . . . . . . . . . . . . 1 . . . 1 . . . . . . . . . Zone Layout 2 | . . . 2 . . . . . . . . . . . . . . . . . . . . . . . . . . . Garrison Registry 2 | . . . . . . . . . . . . . . . . . . . . 1 . . . . . . . 1 . . Security Stations 1 | . . . . . . . . . . 1 . . . . . . . . . . . . . . . . . . . . EX-Prototype ID Bank 1 | . . . . . 1 . . . . . . . . . . . . . . . . . . . . . . . . . Fabricator Hacks 2 | . . . . . . . . . . . . . 1 . . . 1 . . . . . . . . . . . . . Network Status 2 | . . . . . . . . . . . . . 1 . . . 1 . . . . . . . . . . . . . Repair Station Hacks . | . . . . . . . . . . . . . . . . . . . . . . . . . . . . . . . Recycling Unit Hacks 1 | . 1 . . . . . . . . . . . . . . . . . . . . . . . . . . . . . Retrieve Components 1 | . 1 . . . . . . . . . . . . . . . . . . . . . . . . . . . . . Scanalyzer . | . . . . . . . . . . . . . . . . . . . . . . . . . . . . . . . Garrison Access Hacks 12 | . . . . . . . 1 . 1 . 1 . . . 1 . 1 . 1 . 1 . 1 . 1 . 1 . 2 . Unlock Access 12 | . . . . . . . 1 . 1 . 1 . . . 1 . 1 . 1 . 1 . 1 . 1 . 1 . 2 . Unauthorized Hacks 12 | . 1 . . . . . . . 3 . 3 . 1 . . . . . 1 . 2 . . . . . 1 . . . Terminals 7 | . . . . . . . . . 3 . 2 . . . . . . . 1 . 1 . . . . . . . . . Track 1 | . . . . . . . . . . . 1 . . . . . . . . . . . . . . . . . . . Botnet 6 | . . . . . . . . . 3 . 1 . . . . . . . 1 . 1 . . . . . . . . . Fabricators . | . . . . . . . . . . . . . . . . . . . . . . . . . . . . . . . Repair Stations 4 | . . . . . . . . . . . 1 . 1 . . . . . . . 1 . . . . . 1 . . . Mechanics 4 | . . . . . . . . . . . 1 . 1 . . . . . . . 1 . . . . . 1 . . . Recycling Units 1 | . 1 . . . . . . . . . . . . . . . . . . . . . . . . . . . . . Mask 1 | . 1 . . . . . . . . . . . . . . . . . . . . . . . . . . . . . Scanalyzers . | . . . . . . . . . . . . . . . . . . . . . . . . . . . . . . . Garrison Access . | . . . . . . . . . . . . . . . . . . . . . . . . . . . . . . . Data Cores Recovered . | . . . . . . . . . . . . . . . . . . . . . . . . . . . . . . . Used . | . . . . . . . . . . . . . . . . . . . . . . . . . . . . . . . Hacking Detections 52 | . 3 . 8 . . . . 2 1 2 4 1 3 . 2 1 5 2 1 . 3 1 2 1 1 . 5 2 2 . Full Trace Events 9 | . . . 1 . . . . 2 . 1 . 1 1 . . . . 2 . . . . . 1 . . . . . . Feedback Events 1 | . . . . . . . . . . . . . 1 . . . . . . . . . . . . . . . . . Corruption 1 | . . . . . . . . . . . . . 1 . . . . . . . . . . . . . . . . . Feedback Blocked . | . . . . . . . . . . . . . . . . . . . . . . . . . . . . . . . Robot Schematics Acquired . | . . . . . . . . . . . . . . . . . . . . . . . . . . . . . . . Robots Built . | . . . . . . . . . . . . . . . . . . . . . . . . . . . . . . . Authchips . | . . . . . . . . . . . . . . . . . . . . . . . . . . . . . . . Time . | . . . . . . . . . . . . . . . . . . . . . . . . . . . . . . . Total Robot Build Rating . | . . . . . . . . . . . . . . . . . . . . . . . . . . . . . . . Part Schematics Acquired 1 | . . . 1 . . . . . . . . . . . . . . . . . . . . . . . . . . . Parts Built . | . . . . . . . . . . . . . . . . . . . . . . . . . . . . . . . Authchips . | . . . . . . . . . . . . . . . . . . . . . . . . . . . . . . . Time . | . . . . . . . . . . . . . . . . . . . . . . . . . . . . . . . Total Part Build Rating . | . . . . . . . . . . . . . . . . . . . . . . . . . . . . . . . Parts Repaired . | . . . . . . . . . . . . . . . . . . . . . . . . . . . . . . . Time . | . . . . . . . . . . . . . . . . . . . . . . . . . . . . . . . Parts Recycled . | . . . . . . . . . . . . . . . . . . . . . . . . . . . . . . . Recycled Matter . | . . . . . . . . . . . . . . . . . . . . . . . . . . . . . . . Retrieved Matter . | . . . . . . . . . . . . . . . . . . . . . . . . . . . . . . . Retrieved Components 4 | . 4 . . . . . . . . . . . . . . . . . . . . . . . . . . . . . Parts Scanalyzed . | . . . . . . . . . . . . . . . . . . . . . . . . . . . . . . . Part Schematics Acquired . | . . . . . . . . . . . . . . . . . . . . . . . . . . . . . . . Parts Damaged . | . . . . . . . . . . . . . . . . . . . . . . . . . . . . . . . Bothacking | -11 -10 -10 -9 -9 -9 -8 -8 -8 -8 -8 -7 -7 -7 -7 -6 -6 -6 -6 -5 -5 -5 -5 -4 -4 -3 -3 -2 -2 -1 -1 ------------ Run | Scr Mat Min Mat Min Exi Min Mat Gar Mat Gar Fac Gar Fac Low Fac Gar Fac Gar Fac Gar Fac Gar Fac Gar Res Gar Res Gar Acc Gar Used RIF Installer 9 | . . . . . . . . 1 . 1 . . . . . 2 . 1 . 1 . 1 . 1 . 1 . . . . Coupler Efficiency 1 | . . . . . . . . . . . . . . . . . . . . . . . . 1 . . . . . . Hotswap 1 | . . . . . . . . . . 1 . . . . . . . . . . . . . . . . . . . . Threat Obfuscator 2 | . . . . . . . . . . . . . . . . . . 1 . 1 . . . . . . . . . . Signal Jammer 1 | . . . . . . . . . . . . . . . . . . . . . . . . . . 1 . . . . Watcher Feeds 1 | . . . . . . . . . . . . . . . . 1 . . . . . . . . . . . . . . Alert ID Control 1 | . . . . . . . . . . . . . . . . . . . . . . 1 . . . . . . . . Autooverride 1 | . . . . . . . . . . . . . . . . 1 . . . . . . . . . . . . . . Robots Hacked 53 | . . . . . . . . 2 2 4 1 2 . . . . . 4 . 1 5 12 1 4 . 10 2 1 2 . Non-combat 1 | . . . . . . . . . . . 1 . . . . . . . . . . . . . . . . . . . Combat 52 | . . . . . . . . 2 2 4 . 2 . . . . . 4 . 1 5 12 1 4 . 10 2 1 2 . Autooverrided 16 | . . . . . . . . . . . . . . . . . . . . 1 1 8 1 . . 2 2 1 . . Robot Hacks Applied 39 | . . . . . . . . 2 2 4 1 2 . . . . . 4 . . 4 5 . 4 . 8 1 . 2 . amplify_resonance 1 | . . . . . . . . . . . . . . . . . . . . . . . . . . 1 . . . . disable_weapons 1 | . . . . . . . . . . . . . . . . . . 1 . . . . . . . . . . . . go_dormant 2 | . . . . . . . . . . . . . . . . . . 1 . . . 1 . . . . . . . . formatsys_low 1 | . . . . . . . . . . . 1 . . . . . . . . . . . . . . . . . . . formatsys_high 34 | . . . . . . . . 2 2 4 . 2 . . . . . 2 . . 4 4 . 4 . 7 1 . 2 . Relay Couplers Released 123 | . . . . . . . . 19 . 12 . 16 . . . 8 . 11 . 7 . 15 . 24 . 8 . 3 . . Machine Destruction 119 | . . . . . . . . 15 . 12 . 16 . . . 8 . 11 . 7 . 15 . 24 . 8 . 3 . . Programmers 4 | . . . . . . . . 4 . . . . . . . . . . . . . . . . . . . . . . Attached 31 | . . . . . . . . 2 1 2 1 3 . . . 1 . 3 . 1 2 2 . 5 . 4 1 1 2 . Fabnet Peak Effective % . | . . . . . . . . . . . . . . . . . . . . . . . . . . . . . . . Robots Rewired 22 | . . . . . . . . . . 6 . . . . . . . 9 . . . 3 . 3 . 1 . . . . Allies Hacked 1 | . . . . . . . . . . . . . . . . . . . . . . . . . . 1 . . . . Hacks Repelled . | . . . . . . . . . . . . . . . . . . . . . . . . . . . . . . . Allies | -11 -10 -10 -9 -9 -9 -8 -8 -8 -8 -8 -7 -7 -7 -7 -6 -6 -6 -6 -5 -5 -5 -5 -4 -4 -3 -3 -2 -2 -1 -1 -------- Run | Scr Mat Min Mat Min Exi Min Mat Gar Mat Gar Fac Gar Fac Low Fac Gar Fac Gar Fac Gar Fac Gar Fac Gar Res Gar Res Gar Acc Gar Total Allies 79 | . . 1 . 3 . . . 3 2 10 1 4 . 1 . . . 11 . 1 5 14 1 7 . 10 2 1 2 . Largest Group 10 | . . 1 1 3 3 3 2 2 2 7 5 6 2 1 1 1 . 10 10 10 5 6 3 5 2 7 2 1 1 . Highest-Rated Group 441 | . . 31 31 40 40 40 24 36 106 198 185 235 106 106 106 106 . 407 407 407 311 313 77 241 91 441 296 148 64 . Highest-Rated Ally 148 | . . 31 31 16 16 16 16 20 90 90 90 90 90 106 106 106 . 119 119 119 137 137 36 56 49 116 148 148 64 . Total Orders 46 | . . . . . . . . . 4 8 5 7 . . . . . 7 2 . 2 4 . . . 7 . . . . STAY 29 | . . . . . . . . . 2 6 3 5 . . . . . 3 1 . 1 2 . . . 6 . . . . FOLLOW 16 | . . . . . . . . . 2 2 1 2 . . . . . 4 1 . 1 2 . . . 1 . . . . AID 1 | . . . . . . . . . . . 1 . . . . . . . . . . . . . . . . . . . Ally Attacks 671 | . . 3 . 9 . 19 7 25 17 42 15 80 8 . 9 18 . 19 22 67 15 122 10 38 . 43 52 10 21 . Total Damage 17404 | . . 41 . 59 . 191 55 240 565 834 240 1185 101 . 464 718 . 455 614 1890 795 3251 97 1313 . 1270 1635 359 1032 . Kills 109 | . . 2 . 3 . . 1 1 1 7 2 15 . . 5 5 . 4 4 12 4 21 4 3 . 4 7 1 3 . Allies Corrupted 4 | . . . . . . . . . . . . . . . . . . . . 1 . . . 1 . 1 . . 1 . Allies Melted 2 | . . . . . . . . . . . . . . . . . . . . . . 1 . . . 1 . . . . Intel | -11 -10 -10 -9 -9 -9 -8 -8 -8 -8 -8 -7 -7 -7 -7 -6 -6 -6 -6 -5 -5 -5 -5 -4 -4 -3 -3 -2 -2 -1 -1 ------- Run | Scr Mat Min Mat Min Exi Min Mat Gar Mat Gar Fac Gar Fac Low Fac Gar Fac Gar Fac Gar Fac Gar Fac Gar Res Gar Res Gar Acc Gar Robot Analysis Total 6 | . 2 . 3 . . . . . 1 . . . . . . . . . . . . . . . . . . . . . Derelict Logs Recovered 3 | . . 2 . 1 . . . . . . . . . . . . . . . . . . . . . . . . . . Drone Launches 2 | . . . . . . . . . 2 . . . . . . . . . . . . . . . . . . . . . Drone Recoveries 2 | . . . . . . . . . 2 . . . . . . . . . . . . . . . . . . . . . Decoded 0b10 Intel 6 | . . . . . . . . . . . . . . . 2 4 . . . . . . . . . . . . . . Garrisons 1 | . . . . . . . . . . . . . . . 1 . . . . . . . . . . . . . . . Patrols 5 | . . . . . . . . . . . . . . . 1 4 . . . . . . . . . . . . . . Exploration | -11 -10 -10 -9 -9 -9 -8 -8 -8 -8 -8 -7 -7 -7 -7 -6 -6 -6 -6 -5 -5 -5 -5 -4 -4 -3 -3 -2 -2 -1 -1 ------------- Run | Scr Mat Min Mat Min Exi Min Mat Gar Mat Gar Fac Gar Fac Low Fac Gar Fac Gar Fac Gar Fac Gar Fac Gar Res Gar Res Gar Acc Gar Turns Passed 31477 | 142 886 819 2074 1111 362 122 139 1987 1244 3103 1344 2981 609 90 259 1070 824 1937 526 656 777 2418 171 1758 16 891 1571 901 659 30 Spaces Moved 17558 | 56 533 564 1113 683 233 49 78 874 460 1153 747 1496 497 156 182 676 471 964 284 284 409 1076 96 898 16 639 1377 398 1057 39 Core 934 | 32 9 . . . . . . . . . . . 288 156 9 . . . . . . . . . . 41 32 27 301 39 Treads 8152 | 19 18 . 6 . . . . . 3 1150 747 1496 209 . 25 196 471 964 284 284 409 1076 96 515 . . . 182 2 . Legs 997 | . . . . . . . . . . . . . . . . . . . . . . . . 383 16 598 . . . . Wheels 5196 | 5 506 564 1107 683 233 49 78 874 457 3 . . . . 148 480 . . . . . . . . . . 9 . . . Hover 254 | . . . . . . . . . . . . . . . . . . . . . . . . . . . 247 . 7 . Flight 2025 | . . . . . . . . . . . . . . . . . . . . . . . . . . . 1089 189 747 . Fastest Speed 22 | 50 90 135 140 155 155 155 155 155 140 160 160 155 50 50 50 100 161 161 170 170 170 160 166 105 105 50 25 22 31 50 Average Speed 143 | 184 137 135 144 155 155 197 160 175 214 238 160 179 100 50 105 125 161 168 170 170 170 172 166 141 105 99 56 98 45 50 Slowest Speed 800 | 250 250 140 320 155 155 230 230 230 560 320 160 240 170 50 160 161 161 170 170 170 170 250 166 260 105 183 800 500 160 50 Overloaded Moves 16 | . . . . . . . . . . . . . . . . . . . . . . . . . . . . 16 . . Propulsion Burnouts . | . . . . . . . . . . . . . . . . . . . . . . . . . . . . . . . Robots Hopped 63 | . . . . . . . . . . . . . . . . . . . . . . . . . . . 55 1 7 . Cave-ins Triggered . | . . . . . . . . . . . . . . . . . . . . . . . . . . . . . . . Exploration Rate (%) 42 | 4 78 96 87 99 62 10 9 72 36 81 14 86 21 19 4 70 10 82 8 35 10 87 5 68 1 58 19 36 29 10 Regions Visited 30 Branch Regions 5 Pre-discovered Areas 2 | . . 1 . . 1 . . . . . . . . . . . . . . . . . . . . . . . . . Known Exits Taken 11 | . . . . . . . 1 . 1 . 1 . . . 1 . 1 . 1 . 1 . 1 . 1 . 1 . 1 . Unknown Exits Taken 9 | 1 1 1 1 1 1 1 . . . . . . 1 1 . . . . . . . . . . . . . . . . Scrap Searched 5 | . . 2 . 2 . . . . . . . . . 1 . . . . . . . . . . . . . . . . Spaces Dug 31 | . . . . . . . . . . . 3 6 3 . . 1 1 . 1 . 4 2 1 3 . 1 5 . . . Terrain Destroyed 700 | . 23 51 80 22 . . . 50 16 69 3 72 17 . . 4 28 81 5 9 7 3 1 10 . 81 49 19 . . Melee 10 | . . . . . . . . . . . 3 . 3 . . 1 . . . . . . . 3 . . . . . . Projectile 149 | . . . . . . . . . . . . 7 4 . . 3 6 5 5 8 7 2 1 6 . 27 49 19 . . AOE 538 | . 23 51 80 22 . . . 50 16 69 . 65 10 . . . 22 76 . . . . . . . 54 . . . . Terrain Rammed . | . . . . . . . . . . . . . . . . . . . . . . . . . . . . . . . Walls Destroyed . | . . . . . . . . . . . . . . . . . . . . . . . . . . . . . . . Machines Disabled . | . . . . . . . . . . . . . . . . . . . . . . . . . . . . . . . Actions | -11 -10 -10 -9 -9 -9 -8 -8 -8 -8 -8 -7 -7 -7 -7 -6 -6 -6 -6 -5 -5 -5 -5 -4 -4 -3 -3 -2 -2 -1 -1 --------- Run | Scr Mat Min Mat Min Exi Min Mat Gar Mat Gar Fac Gar Fac Low Fac Gar Fac Gar Fac Gar Fac Gar Fac Gar Res Gar Res Gar Acc Gar Total 21496 | 79 612 595 1363 707 235 59 89 1127 623 1374 843 1681 553 162 238 819 521 1164 312 364 454 1442 102 1160 15 793 1986 750 1225 49 Wait 1377 | . 16 6 48 6 . . . 92 83 16 37 25 12 1 31 31 21 22 11 5 12 62 . 22 . 31 454 211 122 . Move 17425 | 55 532 563 1112 682 232 48 78 873 460 1152 746 1495 496 155 181 675 471 963 283 283 408 1075 96 897 15 638 1284 395 1043 39 Hop 46 | . . . . . . . . . . . . . . . . . . . . . . . . . . . 38 1 7 . Pick Up 161 | 5 12 3 26 1 1 . 5 8 . 9 6 12 1 . 2 1 4 10 1 4 1 10 . 13 . 4 14 3 5 . Fast Attach 238 | 9 . . 11 . . . . 2 11 10 2 8 4 3 14 8 3 8 4 10 2 16 . 27 . 12 34 24 15 1 Attach 98 | . . 1 4 . . 3 2 2 3 4 3 1 1 . 1 3 . 1 . . . 7 1 17 . 4 18 9 12 1 Detach 61 | 2 . . 2 . . . . . 2 . . . . . . 3 1 3 . 2 . 4 . 4 . 4 18 6 9 1 Swap 184 | 1 9 11 16 3 . 1 1 16 9 23 7 26 2 . . 4 1 7 1 2 6 7 . 15 . 8 3 5 . . Drop 221 | . 1 . 38 1 2 . 2 14 5 21 5 21 2 . 4 12 4 8 4 15 3 13 . 11 . 5 16 9 5 . Fire 1298 | 7 41 11 106 14 . 7 1 104 50 127 34 82 19 . . 43 16 53 8 43 22 174 5 107 . 60 74 83 7 . Melee 124 | . . . . . . . . . . . 3 2 4 3 5 25 . 34 . . . . . 42 . 6 . . . . Ram 4 | . 1 . . . . . . . . . . . . . . . . . . . . . . . . . . . . 3 Kick . | . . . . . . . . . . . . . . . . . . . . . . . . . . . . . . . Crush 1 | . . . . . . . . . . . . . . . . . . . . . . . . 1 . . . . . . Escape Stasis 127 | . . . . . . . . 16 . 12 . 9 12 . . 14 . . . . . 3 . 1 . 19 33 4 . 4 Rewire 131 | . . . . . . . . . . . . . . . . . . 55 . . . 71 . 3 . 2 . . . . Trap . | . . . . . . . . . . . . . . . . . . . . . . . . . . . . . . . Miscellaneous . | . . . . . . . . . . . . . . . . . . . . . . . . . . . . . . . Route ------- -11/Scrapyard -10/Materials (discovered 3 exits: *Mat x2 / *Min) -10/Mines (discovered 2 exits: *Mat x2) -9/Materials (discovered 5 exits: *Mat x3 / *Min x2) -9/Mines (discovered 4 exits: *Mat x2 / *Exi / [*Zio]) -9/Exiles (discovered 2 exits: [*Min x2]) -8/Mines -8/Materials (discovered 3 exits: Fac x2 / Gar) -8/Garrison (discovered 3 exits: *Mat x3) -8/Materials (discovered 3 exits: [*Sto x2] / Gar) -8/Garrison (discovered 3 exits: *Fac x3) -7/Factory -7/Garrison (discovered 3 exits: *Fac x3) -7/Factory -7/Lower Caves -6/Factory -6/Garrison (discovered 2 exits: *Fac x2) -6/Factory (discovered 2 exits: *Fac / Gar) -6/Garrison (discovered 2 exits: *Fac x2) -5/Factory (discovered 3 exits: *Upp x2 / Gar) -5/Garrison (discovered 3 exits: *Fac x3) -5/Factory (discovered 2 exits: *Fac / Gar) -5/Garrison (discovered 4 exits: *Fac x3 / [*Fac]) -4/Factory (discovered 3 exits: Upp x2 / Gar) -4/Garrison (discovered 2 exits: *Res x2) -3/Research -3/Garrison -2/Research -2/Garrison (discovered 3 exits: *Acc x3) -1/Access (discovered 2 exits: Gar / Gar) -1/Garrison History --------- Turn | Location | Event 8 | -11/Scrapyard | Discovered new exit (range 16) 143 | -11/Scrapyard | Entered Materials 316 | -10/Materials | Build established: Mutant 353 | -10/Materials | Discovered new exit (range 8) 502 | -10/Materials | Discovered new exit (range 9) 828 | -10/Materials | Discovered new exit (range 16) 1029 | -10/Materials | Entered Mines 1158 | -10/Mines | Found the Drone Emporium 1164 | -10/Mines | Found Prototype Device 1165 | -10/Mines | Identified Splice Drone Bay 1272 | -10/Mines | Learned Materials interactive machine intel 1554 | -10/Mines | Learned location of Storage (-8) 1578 | -10/Mines | Discovered new exit (range 9) 1611 | -10/Mines | Received a Mining Laser from a helpful Derelict 1617 | -10/Mines | Discovered new exit (range 16) 1848 | -10/Mines | Entered Materials 1848 | -9/Materials | Accompanied by 1 ally 1848 | -9/Materials | Evolved 2 slots: Utility x1, Weapon x1 1849 | -9/Materials | Loaded intel: 18 interactive machine locations 2202 | -9/Materials | Build established: Gunner 2202 | -9/Materials | Discovered new exit (range 12) 2663 | -9/Materials | Discovered new exit (range 15) 2730 | -9/Materials | Build established: Scavenger-Gunner 2793 | -9/Materials | Discovered new exit (range 10) 3048 | -9/Materials | First assault squad dispatched 3337 | -9/Materials | Discovered new exit (range 11) 3539 | -9/Materials | Discovered new exit (range 8) 3868 | -9/Materials | Core integrity fell below 50% 3922 | -9/Materials | Entered Mines 4184 | -9/Mines | Assisted by bots powering up and referring to "LRC-V3" 4240 | -9/Mines | Discovered new exit (range 8) 4261 | -9/Mines | A Derelict revealed a hidden shortcut to a safe place 4383 | -9/Mines | Discovered new exit (range 4) 4482 | -9/Mines | Build established: Scavenger-Tank 4560 | -9/Mines | Deemed a non-threat by the Exiles lab entrance 4560 | -9/Mines | Discovered new exit (range 5) 4673 | -9/Mines | Found a damaged Exp. Sensor Array with a note attached 4677 | -9/Mines | Found Prototype Device 4812 | -9/Mines | Learned location of 2 exits from Materials 5033 | -9/Mines | Entered Exiles 5033 | -9/Exiles | Accompanied by 3 allies 5057 | -9/Exiles | Discovered new exit (range 15) 5072 | -9/Exiles | Met 8R-AWN 5099 | -9/Exiles | Met EX-HEX 5142 | -9/Exiles | Met EX-BIN 5164 | -9/Exiles | Aligned with FarCom system 5165 | -9/Exiles | Given EX-Vault access code 5204 | -9/Exiles | Opened EX-Vault 5224 | -9/Exiles | Found Firepult 5256 | -9/Exiles | Warned to stay clear of 0b10 Research branches 5308 | -9/Exiles | Met EX-DEC 5325 | -9/Exiles | Learned location of Zion (-7) 5378 | -9/Exiles | Discovered new exit (range 14) 5395 | -9/Exiles | Left Exiles lab with Firepult 5395 | -9/Exiles | Entered Mines 5395 | -8/Mines | Accompanied by 3 allies 5420 | -8/Mines | Discovered new exit (range 10) 5470 | -8/Mines | Lost 3 parts (2n1u) 5517 | -8/Mines | Entered Materials 5517 | -8/Materials | Accompanied by 2 allies 5517 | -8/Materials | Evolved 2 slots: Propulsion x1, Utility x1 5518 | -8/Materials | Identified exit to Factory 5593 | -8/Materials | Garrison activated, responded to threat 5656 | -8/Materials | Identified exit to Garrison 5656 | -8/Materials | Entered Garrison 5656 | -8/Garrison | Accompanied by 2 allies 5695 | -8/Garrison | Build established: Scavenger-Skirmisher 5762 | -8/Garrison | Triggered checkpoint 5816 | -8/Garrison | Garrison Relay disabled 5895 | -8/Garrison | Installed Relay Interface Framework 5935 | -8/Garrison | Triggered checkpoint 5954 | -8/Garrison | Triggered checkpoint 5962 | -8/Garrison | Triggered checkpoint 5988 | -8/Garrison | Destroyed 9 combat bots 6084 | -8/Garrison | Triggered checkpoint 6323 | -8/Garrison | Garrison Relay disabled 6377 | -8/Garrison | Discovered new exit (range 14) 6520 | -8/Garrison | Triggered checkpoint 6715 | -8/Garrison | Discovered new exit (range 8) 7121 | -8/Garrison | Garrison Relay disabled 7404 | -8/Garrison | Discovered new exit (range 13) 7420 | -8/Garrison | Triggered checkpoint 7506 | -8/Garrison | Rescued a captive Derelict 7530 | -8/Garrison | Triggered checkpoint 7545 | -8/Garrison | Garrison Relay disabled 7643 | -8/Garrison | Entered Materials 7795 | -8/Materials | Discovered new exit (range 13) 7857 | -8/Materials | Build established: Bothacker-Skirmisher 8780 | -8/Materials | Discovered new exit (range 23) 8803 | -8/Materials | Garrison activated, responded to threat 8887 | -8/Materials | Identified exit to Garrison 8887 | -8/Materials | Entered Garrison 8887 | -8/Garrison | Accompanied by 1 ally 8895 | -8/Garrison | Triggered checkpoint 9001 | -8/Garrison | Triggered checkpoint 9036 | -8/Garrison | Garrison Relay disabled 9345 | -8/Garrison | Build established: Bothacker-Tank 9587 | -8/Garrison | Triggered checkpoint 9704 | -8/Garrison | Triggered checkpoint 9711 | -8/Garrison | Discovered exit to Factory (range 15) 9800 | -8/Garrison | Triggered checkpoint 9860 | -8/Garrison | Garrison Relay disabled 10001 | -8/Garrison | Build established: Bothacker-Mutant 10466 | -8/Garrison | Triggered checkpoint 10641 | -8/Garrison | Triggered checkpoint 10692 | -8/Garrison | Core integrity fell below 50% 10745 | -8/Garrison | Discovered exit to Factory (range 12) 10794 | -8/Garrison | Triggered checkpoint 10828 | -8/Garrison | Learned Factory security intel 10997 | -8/Garrison | Garrison Relay disabled 11324 | -8/Garrison | Triggered checkpoint 11361 | -8/Garrison | System corruption reached 10% 11489 | -8/Garrison | Discovered exit to Factory (range 9) 11582 | -8/Garrison | Triggered checkpoint 11646 | -8/Garrison | Build established: Bothacker-Skirmisher 11751 | -8/Garrison | Expanded RIF knowledge: Hotswap 11990 | -8/Garrison | Entered Factory 11990 | -7/Factory | Accompanied by 4 allies 11990 | -7/Factory | Evolved 2 slots: Propulsion x1, Utility x1 11992 | -7/Factory | Identified Exp. Sensor Array 12280 | -7/Factory | Build established: Bothacker-Tank 13127 | -7/Factory | Identified exit to Garrison 13334 | -7/Factory | Entered Garrison 13334 | -7/Garrison | Accompanied by 4 allies 13398 | -7/Garrison | Rescued a captive Derelict 13398 | -7/Garrison | Rescued a captive Derelict 13472 | -7/Garrison | Triggered checkpoint 13496 | -7/Garrison | Garrison Relay disabled 13780 | -7/Garrison | Triggered checkpoint 13814 | -7/Garrison | Triggered checkpoint 13924 | -7/Garrison | Triggered checkpoint 13955 | -7/Garrison | Garrison Relay disabled 14031 | -7/Garrison | Discovered new exit (range 12) 14078 | -7/Garrison | Build established: Bothacker-Mutant 14270 | -7/Garrison | Triggered checkpoint 14278 | -7/Garrison | Triggered checkpoint 14445 | -7/Garrison | Discovered new exit (range 15) 14530 | -7/Garrison | Triggered checkpoint 14556 | -7/Garrison | Garrison Relay disabled 14569 | -7/Garrison | Build established: Bothacker-Tank 14698 | -7/Garrison | Triggered checkpoint 14727 | -7/Garrison | Garrison Relay disabled 14795 | -7/Garrison | Discovered new exit (range 10) 15853 | -7/Garrison | Build established: Bothacker-Mutant 16213 | -7/Garrison | Spotted B-75 Beast 16269 | -7/Garrison | Build established: Bothacker-Tank 16315 | -7/Garrison | Entered Factory 16315 | -7/Factory | Accompanied by 2 allies 16552 | -7/Factory | High security lockdown imminent 16632 | -7/Factory | High security lockdown engaged 16754 | -7/Factory | Released all parts (10) 16867 | -7/Factory | Core integrity fell below 50% 16912 | -7/Factory | Core integrity fell below 20% 16913 | -7/Factory | System corruption reached 10% 16920 | -7/Factory | Discovered new exit (range 9) 16924 | -7/Factory | Entered Lower Caves 17009 | -7/Lower Caves | 12-ASH showed up to help 17012 | -7/Lower Caves | 12-ASH revealed a hidden path 17014 | -7/Lower Caves | Entered Factory 17014 | -6/Factory | Accompanied by 1 ally (12-ASH) 17014 | -6/Factory | Evolved 2 slots: Utility x2 17053 | -6/Factory | Build established: Mutant 17264 | -6/Factory | Identified exit to Garrison 17273 | -6/Factory | Entered Garrison 17273 | -6/Garrison | Accompanied by 1 ally (12-ASH) 17294 | -6/Garrison | Triggered checkpoint 17351 | -6/Garrison | Garrison Relay disabled 17360 | -6/Garrison | Build established: Scavenger-Mutant 17421 | -6/Garrison | Expanded RIF knowledge: Watcher Feeds 17570 | -6/Garrison | Triggered checkpoint 17588 | -6/Garrison | Found Prototype Processor 17588 | -6/Garrison | Identified Exp. Core Analyzer 17724 | -6/Garrison | Triggered checkpoint 17750 | -6/Garrison | Garrison Relay disabled 17910 | -6/Garrison | Discovered new exit (range 13) 18073 | -6/Garrison | Triggered checkpoint 18111 | -6/Garrison | Destroyed 8 combat bots 18166 | -6/Garrison | Expanded RIF knowledge: Autooverride 18203 | -6/Garrison | Triggered checkpoint 18251 | -6/Garrison | Discovered new exit (range 11) 18343 | -6/Garrison | Entered Factory 18572 | -6/Factory | Discovered new exit (range 14) 18707 | -6/Factory | Build established: Mutant 19043 | -6/Factory | First assault squad dispatched 19167 | -6/Factory | Identified exit to Garrison 19167 | -6/Factory | Entered Garrison 19198 | -6/Garrison | Spotted B-75 Beast 19262 | -6/Garrison | Build established: Scavenger-Mutant 19270 | -6/Garrison | Triggered checkpoint 19306 | -6/Garrison | Garrison Relay disabled 19368 | -6/Garrison | Triggered checkpoint 19471 | -6/Garrison | Phase Generator disabled 19491 | -6/Garrison | Discovered new exit (range 12) 19695 | -6/Garrison | Triggered checkpoint 19760 | -6/Garrison | Spotted B-75 Beast 20003 | -6/Garrison | Destroyed 7 combat bots 20016 | -6/Garrison | Triggered checkpoint 20129 | -6/Garrison | Garrison Relay disabled 20196 | -6/Garrison | Triggered checkpoint 20210 | -6/Garrison | Triggered checkpoint 20277 | -6/Garrison | Found Quantum Capacitor 20306 | -6/Garrison | Rewired Executioner 20324 | -6/Garrison | Triggered checkpoint 20627 | -6/Garrison | Discovered new exit (range 10) 20784 | -6/Garrison | Triggered checkpoint 20814 | -6/Garrison | Build established: Botlord-Skirmisher 20826 | -6/Garrison | Expanded RIF knowledge: Threat Obfuscation 20896 | -6/Garrison | Triggered checkpoint 20930 | -6/Garrison | Spotted B-75 Beast 21104 | -6/Garrison | Entered Factory 21104 | -5/Factory | Accompanied by 10 allies 21104 | -5/Factory | Evolved 2 slots: Utility x2 21392 | -5/Factory | Discovered new exit (range 7) 21413 | -5/Factory | Identified exit to Upper Caves 21526 | -5/Factory | Identified exit to Garrison 21630 | -5/Factory | Entered Garrison 21630 | -5/Garrison | Accompanied by 10 allies 21647 | -5/Garrison | Discovered new exit (range 60) 21647 | -5/Garrison | Discovered new exit (range 79) 21647 | -5/Garrison | Discovered new exit (range 49) 21690 | -5/Garrison | Triggered checkpoint 21706 | -5/Garrison | Found Exp. Core Analyzer 21785 | -5/Garrison | Build established: Botlord-Tank 21900 | -5/Garrison | Triggered checkpoint 21992 | -5/Garrison | Destroyed 10 combat bots 22012 | -5/Garrison | Expanded RIF knowledge: Threat Obfuscation 22134 | -5/Garrison | Triggered checkpoint 22226 | -5/Garrison | Garrison Relay disabled 22286 | -5/Garrison | Entered Factory 22345 | -5/Factory | Identified exit to Garrison 22445 | -5/Factory | Discovered new exit (range 15) 22973 | -5/Factory | Build established: Botlord-Mutant 23063 | -5/Factory | Entered Garrison 23063 | -5/Garrison | Accompanied by 4 allies 23133 | -5/Garrison | Triggered checkpoint 23205 | -5/Garrison | Expanded RIF knowledge: Alert ID Control 23220 | -5/Garrison | System corruption reached 10% 23225 | -5/Garrison | Spotted B-75 Beast 23276 | -5/Garrison | Destroyed B-75 Beast 23305 | -5/Garrison | Lost 3 parts (1n2u) 23383 | -5/Garrison | Lost 3 parts (1u2w) 23528 | -5/Garrison | Triggered checkpoint 23803 | -5/Garrison | Spotted B-75 Beast 23854 | -5/Garrison | Triggered checkpoint 23858 | -5/Garrison | Destroyed B-75 Beast 23906 | -5/Garrison | Triggered checkpoint 23934 | -5/Garrison | Garrison Relay disabled 24000 | -5/Garrison | Discovered new exit (range 14) 24071 | -5/Garrison | Triggered checkpoint 24125 | -5/Garrison | Discovered new exit (range 6) 24240 | -5/Garrison | Triggered checkpoint 24316 | -5/Garrison | Triggered checkpoint 24343 | -5/Garrison | Garrison Relay disabled 24431 | -5/Garrison | Discovered new exit (range 10) 24522 | -5/Garrison | Triggered checkpoint 24575 | -5/Garrison | Spotted B-75 Beast 24577 | -5/Garrison | Spotted B-75 Beast 24581 | -5/Garrison | Destroyed B-75 Beast 24584 | -5/Garrison | Destroyed B-75 Beast 24734 | -5/Garrison | Triggered checkpoint 24762 | -5/Garrison | Garrison Relay disabled 24965 | -5/Garrison | Discovered new exit (range 15) 25044 | -5/Garrison | Triggered checkpoint 25271 | -5/Garrison | Garrison Relay disabled 25481 | -5/Garrison | Entered Factory 25481 | -4/Factory | Accompanied by 2 allies 25481 | -4/Factory | Evolved 2 slots: Utility x2 25587 | -4/Factory | Identified exit to Upper Caves 25652 | -4/Factory | Identified exit to Garrison 25652 | -4/Factory | Entered Garrison 25690 | -4/Garrison | Triggered checkpoint 25930 | -4/Garrison | Heavy support dispatched to Research 25943 | -4/Garrison | Garrison Relay disabled 25943 | -4/Garrison | Garrison Relay disabled 25950 | -4/Garrison | Triggered checkpoint 25954 | -4/Garrison | Garrison Relay disabled 25954 | -4/Garrison | Triggered checkpoint 25958 | -4/Garrison | Garrison Relay disabled 25982 | -4/Garrison | Warlord forces raided the area 25997 | -4/Garrison | Lost 3 parts (1n1u1w) 26006 | -4/Garrison | Triggered checkpoint 26079 | -4/Garrison | Triggered checkpoint 26090 | -4/Garrison | Heavy support dispatched to Research 26172 | -4/Garrison | Lost 6 parts (1p2n1u2w) 26176 | -4/Garrison | System corruption reached 10% 26250 | -4/Garrison | Lost 5 parts (1n2u2w) 26418 | -4/Garrison | Build established: Scavenger-Mutant 26545 | -4/Garrison | Garrison Relay disabled 26591 | -4/Garrison | Discovered new exit (range 11) 26732 | -4/Garrison | Build established: Scavenger-Tank 26851 | -4/Garrison | Core integrity fell below 50% 26926 | -4/Garrison | Lost 12 parts (4n5u3w) 26973 | -4/Garrison | Discovered new exit (range 13) 27016 | -4/Garrison | Expanded RIF knowledge: Coupler Efficiency 27158 | -4/Garrison | Garrison Relay disabled 27188 | -4/Garrison | Build established: Botlord-Mutant 27231 | -4/Garrison | Triggered checkpoint 27410 | -4/Garrison | Entered Research 27410 | -3/Research | Accompanied by 2 allies 27410 | -3/Research | Evolved 2 slots: Power x1, Propulsion x1 27418 | -3/Research | Identified exit to Garrison 27426 | -3/Research | Entered Garrison 27426 | -3/Garrison | Accompanied by 2 allies 27438 | -3/Garrison | Phase Generator disabled 27443 | -3/Garrison | Spotted Executioner 27464 | -3/Garrison | Destroyed Executioner 27472 | -3/Garrison | System corruption reached 10% 27483 | -3/Garrison | Rewired Striker 27545 | -3/Garrison | Expanded RIF knowledge: Signal Jamming 27569 | -3/Garrison | Triggered checkpoint 27614 | -3/Garrison | Garrison Relay disabled 27712 | -3/Garrison | Triggered checkpoint 27713 | -3/Garrison | Spotted B-86 Titan 27745 | -3/Garrison | Assimilated Titan 8a with formatsys_high 28088 | -3/Garrison | Triggered checkpoint 28133 | -3/Garrison | Discovered new exit (range 14) 28215 | -3/Garrison | Triggered checkpoint 28223 | -3/Garrison | Garrison Relay disabled 28281 | -3/Garrison | System corruption reached 30% 28297 | -3/Garrison | Released all parts (15) 28317 | -3/Garrison | Entered Research 28317 | -2/Research | Evolved 2 slots: Propulsion x1, Utility x1 28326 | -2/Research | Lost 4 parts (2n2u) 28576 | -2/Research | Build established: Mutant 29247 | -2/Research | Build established: Scavenger-Skirmisher 29324 | -2/Research | Spotted B-90 Cyclops 29394 | -2/Research | Lost 4 parts (2n2u) 29440 | -2/Research | System corruption reached 10% 29470 | -2/Research | Lost 3 parts (1n1u1w) 29489 | -2/Research | Assimilated Cyclops 9a with formatsys_high 29579 | -2/Research | Build established: Scavenger-Scout 29692 | -2/Research | Spotted B-90 Cyclops 29888 | -2/Research | Identified exit to Garrison 29888 | -2/Research | Entered Garrison 29949 | -2/Garrison | Spotted B-90 Cyclops 29954 | -2/Garrison | Triggered checkpoint 29956 | -2/Garrison | Triggered checkpoint 30053 | -2/Garrison | Lost 10 parts (1p5n3u1w) 30418 | -2/Garrison | Garrison Relay disabled 30725 | -2/Garrison | Core integrity fell below 50% 30768 | -2/Garrison | Triggered checkpoint 30782 | -2/Garrison | Discovered new exit (range 51) 30782 | -2/Garrison | Discovered new exit (range 12) 30782 | -2/Garrison | Discovered new exit (range 69) 30787 | -2/Garrison | Core integrity fell below 20% 30789 | -2/Garrison | Entered Access 30789 | -1/Access | Evolved 2 slots: Utility x2 30806 | -1/Access | Identified exit to Garrison 30810 | -1/Access | Lost 19 parts (2p7n8u2w) 31264 | -1/Access | Spotted B-99 Colossus 31301 | -1/Access | Lost 7 parts (3n4u) 31371 | -1/Access | Spotted B-99 Colossus 31371 | -1/Access | Spotted B-99 Colossus 31407 | -1/Access | Core integrity fell below 50% 31424 | -1/Access | Lost 8 parts (1p3n3u1w) 31448 | -1/Access | Identified exit to Garrison 31448 | -1/Access | Entered Garrison 31475 | -1/Garrison | Core integrity fell below 20% 31478 | -1/Garrison | Destroyed by Y-72 Warden with Quantum Rifle Last Messages --------------- 31467_ Field strength at 94. 31468_ Field strength at 88. 31469_ A7ZOJDHNRR8SDHQEIUL>V3M,AT 31469_ Field strength at 82. 31469_ C-30 ARC bursts open, deploying its payload. 31469_ S-43 Plague unfolds itself. 31470_ Field strength at 70. 31471_ Field strength at 58. 31471_ Relay Coupler [Sentry] destroyed. 31473_ Stasis field depleted. 31473_ Slammed into S-43 Plague. 31473_ S-43 Plague destroyed. 31474_ Slammed into S-43 Plague. 31474_ Adv. Target Analyzer broken. 31474_ Destabilizing: Short circuit. 31475_ Slammed into S-43 Plague. 31475_ Destabilizing: Core damaged (-64). 31477_ Acquired Xenon Bombardment Thruster. 31477_ Xenon Bombardment Thruster destroyed. [Achievement: 50k Club] Map ----- +----------------------------------------------------+ | ??????????????????????????????????????######?????? | | ??????????????????????????????????????# #?????? | | ??????????????????????????????????????# #?????? | | ?????????????????????????????????#????# #?????? | | ????????????????????????????????? ????# ###?????? | | ????????????????????????????????? ????# ##??????? | | ????????????????????????????????? ????# #??????? | | ??????????????????????????###???# #???# #??????? | | ?????????????????????????? #???# #???# #??????? | | ??????????????????????????# #???# ###?# #??????? | | ????????????????p?????????# #???# !!??# ##??????? | | ??????????????????????????# #???# !???# #???????? | | ??????????????????????????# #???# #???# #???????? | | ???????????????############ ##### ##### #???????? | | ??????????????# bg #???????? | | ??????????????#g #???????? | | ??????????????# ######### s##############???????? | | ????????????????g????????# #????????????????????? | | ?????????????????????????# #????????????????????? | | ?????????????????????????# #????????????????????? | | ?????????????????????????# #????????????????????? | | ?????????gg?g????????????# #????????????????????? | | ??????????"""#???????#s??# #????????????????????? | | ????????? ####+### #????????????????????? | | ????????? s s s %ss#######??????????????? | | ????????? % s Y @ s ???????? | | ??????????????# ####;############??????????????? | | ?????????????????????????????????????????????????? | | ?????????????????????????????????????????????????? | | ??????????BB?????????????????????????????????????? | | ??????????BB???????Y?????????????????????????????? | | ?????????????????????????????????????????????????? | | ?????????p?p?????????????????????????????????????? | | ?????????????????????????????????????????????????? | | ?????????????????????????????????????????????????? | | ?????????????????????????????????????????????????? | | ?????????????????????????????????????????????????? | | ?????????????????????????????????????????????????? | | ?????????????????????????????????????????????????? | | ?????????????????????????????????????????????????? | | ??????????????????????h?h????????????????????????? | | ?????????????????????????????????????????????????? | | ???????????????????????????h?????????????????????? | | ?????????????????????????????????????????????????? | | ?????????????????????????????????????????????????? | | ?????????????????????????????????????????????????? | | ?????????????????????????????????????????????????? | | ?????????????????????????????????????????????????? | | ?????????????????????????????????????????????????? | | ?????????????????????????????????????????????????? | +----------------------------------------------------+ Best States ------------- Heat Dissipation 163 Coolant Potential 120 Energy Generation 43 Energy Capacity 1050 Matter Stores 550 Matter Capacity 550 Sight Range 16 Terrain Scan Range 14 Terrain Scan Density 85 Cloak Strength 3 Additional Mass Support 12 Armor Coverage 2400 Resistance: TH 15 Point Defense Rating 80 Evasion (%) 65 Targeting Accuracy 8 Melee Accuracy 6 Target Analysis 12 Core Analysis 8 Recoil Reduction 6 Particle Charging 25 Offensive Hacking 11 Relay Coupler Types 6 Relay Coupler Value 182 Trap Extractor Capacity 4 Item Schematics ----------------- Hcp. Storage Unit | -9/Materials | Hacked Robot Schematics ------------------ None Fabricated ------------ Nothing Alien Tech Used ----------------- None Achievements -------------- 50k Club Beloved Challenges ------------ None Game ------ Seed PotentialDirtyWarhead Manual? 0 Play Time 04:08:49 Cumulative 456.5 hours Start 2022.08.05 @ 11:58:59 End 2022.08.08 @ 16:46:59 Sessions 1 Manual Loads 0 Difficulty Rogue Special Mode None Game No. 501 Rogue 500 Adventurer 0 Explorer 1 Win Type - Total 14 Types 9/0/2/3/0/0/0/0/0 Lore% 78 Gallery% 88 Achievement% 69 Wizard Run 0 Options --------- ASCII 0 Keyboard 1 Movement Vi Keybinds 0 Fullscreen 1 Font 18/SmallcapsGlow Map View 76x50 Tactical HUD 1 Map Filters NONE Filters NONE Steam 1 RUN: f556a19f-a6d2-4ee5-83e6-6e08570fed44